bitfinex-derivatives/quotes_BNBF0:USTF0_20250413
["timestamp","ask_amount","ask_price","bid_price","bid_amount"]
[1744545708682,0.29632541,589.24,588.27,2.303]
[1744545708878,0.29632541,589.23,588.27,2.303]
[1744545709075,0.29632541,589.27,588.27,3.06]
[1744545709380,0.29632541,589.26,588.27,3.06]
[1744545709581,0.29632541,589.25,588.27,3.06]
[1744545709884,0.29632541,589.24,588.27,3.06]
[1744545710082,0.29632541,589.27,588.27,3.06]
[1744545710278,0.29632541,589.23,588.27,3.06]
[1744545710582,0.29632541,589.22,588.27,3.06]
[1744545710780,0.29632541,589.3,588.27,3.06]
[1744545710981,0.29632541,589.3,588.27,3.773]
[1744545711784,0.29565565,589.29,588.27,3.773]
[1744545712183,0.29632103,589.28,588.27,3.773]
[1744545713685,0.29632103,589.3,588.27,3.773]
[1744545714791,0.29565565,589.29,588.27,3.773]
[1744545715089,0.29632103,589.28,588.27,3.773]
[1744545715291,0.29632103,589.27,588.27,3.773]
[1744545715484,0.29632103,589.26,588.27,3.773]
[1744545715687,0.29632103,589.25,588.27,3.773]
[1744545715885,0.29632103,589.24,588.27,3.773]
[1744545716089,0.29632103,589.23,588.27,3.773]
[1744545716285,0.29632103,589.28,588.27,3.773]
[1744545716485,0.29632103,589.27,588.27,3.773]
[1744545716792,0.33937995,589.31,588.27,3.773]
[1744545717089,0.29626529,589.3,588.27,3.773]
[1744545717289,0.29626529,589.29,588.27,3.773]
[1744545717484,0.29626529,589.28,588.27,3.773]
[1744545717686,0.29626529,589.27,588.27,3.773]
[1744545717889,0.29626529,589.26,588.27,3.773]
[1744545718088,0.29626529,589.25,588.27,3.773]
[1744545718293,0.29626529,589.24,588.27,3.773]
[1744545718486,0.29626529,589.23,588.27,3.773]
[1744545718790,0.29626529,589.22,588.27,3.773]
[1744545718991,0.29626529,589.27,588.27,3.773]
[1744545719187,0.29626529,589.26,588.27,3.773]
[1744545719486,0.29626529,589.25,588.27,3.773]
[1744545719693,0.29626529,589.24,588.27,3.773]
[1744545719893,0.29626529,589.23,588.27,3.773]
[1744545720189,0.29627334,589.22,588.27,3.773]
[1744545720389,0.33937995,589.31,588.27,3.773]
[1744545720390,0.29627334,589.3,588.27,3.773]
[1744545720595,0.29627334,589.29,588.27,3.773]
[1744545720795,0.29627334,589.28,588.27,3.773]
[1744545720992,0.29566318,589.29,588.27,3.773]
[1744545720993,0.29627334,589.27,588.27,3.773]
[1744545721188,0.29627334,589.26,588.27,3.773]
[1744545721393,0.29627334,589.25,588.27,4.379]
[1744545721592,0.29627334,589.24,588.27,4.379]
[1744545721795,0.29627334,589.28,588.27,4.379]
[1744545721989,0.29627334,589.27,588.27,4.379]
[1744545722191,0.29627334,589.26,588.27,4.379]
[1744545722495,0.29627334,589.25,588.27,4.379]
[1744545722696,0.29627334,589.24,588.27,4.379]
[1744545722889,0.29627334,589.23,588.27,4.379]
[1744545723094,0.29627334,589.22,588.27,4.379]
[1744545723291,0.29627334,589.21,588.27,4.379]
[1744545723494,0.29627334,589.28,588.27,4.379]
[1744545723699,0.29627334,589.27,588.27,4.379]
[1744545723893,0.29567072,589.23,588.27,4.379]
[1744545724096,0.29627334,589.22,588.27,4.379]
[1744545724399,0.29627334,589.21,588.27,4.379]
[1744545724594,0.29627334,589.2,588.27,4.379]
[1744545724795,0.29627334,589.22,588.27,4.379]
[1744545724995,0.29627334,589.21,588.27,4.379]
[1744545725194,0.29627334,589.22,588.27,4.379]
[1744545725398,0.29627334,589.21,588.27,4.379]
[1744545725597,0.29627334,589.22,588.27,4.379]
[1744545725799,0.29627334,589.21,588.27,4.379]
[1744545726002,0.29627334,589.22,588.27,4.379]
[1744545726306,0.29627334,589.21,588.27,4.379]
[1744545726603,0.29627334,589.2,588.27,4.379]
[1744545726902,0.29627334,589.19,588.27,4.379]
[1744545727103,0.29627334,589.22,588.27,4.379]
[1744545727602,0.29567072,589.23,588.27,4.379]
[1744545727903,0.29623135,589.22,588.27,4.379]
[1744545728704,0.29623135,589.29,588.27,4.379]
[1744545729000,0.29623135,589.28,588.27,4.379]
[1744545729200,0.29623135,589.27,588.27,4.379]
[1744545729403,0.29627878,589.26,588.27,4.379]
[1744545729603,0.29627878,589.25,588.27,4.379]
[1744545729900,0.29627878,589.24,588.27,4.379]
[1744545730099,0.29627878,589.23,588.27,4.379]
[1744545730304,0.29627878,589.24,588.27,4.379]
[1744545731906,0.29627878,589.23,588.27,4.379]
[1744545732103,0.29627878,589.24,588.27,4.379]
[1744545732307,0.29627878,589.23,588.27,4.379]
[1744545732508,0.29627878,589.24,588.27,4.379]
[1744545732805,1.28536923,589.21,588.27,4.379]
[1744545733008,0.2961387,589.2,588.27,4.379]
[1744545735110,0.2961387,589.26,588.27,4.379]
[1744545735405,0.2961387,589.25,588.27,4.379]
[1744545735606,0.2961387,589.26,588.27,4.379]
[1744545735810,0.2961387,589.25,588.27,4.379]
[1744545736010,0.2961387,589.26,588.27,4.379]
[1744545737411,1.28536923,589.22,588.27,4.379]
[1744545737708,0.29596985,589.21,588.27,4.379]
[1744545739116,1.28536923,589.22,588.27,4.379]
[1744545739309,0.29600761,589.21,588.27,4.379]
[1744545740009,0.29600761,589.2,588.27,4.379]
[1744545740214,0.29600761,589.28,588.27,4.379]
[1744545740819,0.33939147,589.29,588.27,4.379]
[1744545741117,0.29602285,589.28,588.27,4.379]
[1744545748825,0.33939147,589.29,588.27,4.379]
[1744545749020,0.2959737,589.28,588.27,4.379]
[1744545751125,0.33940299,589.27,588.27,4.379]
[1744545751327,0.2959737,589.26,588.27,4.379]
[1744545751630,0.3394145,589.25,588.27,4.379]
[1744545751823,0.2959737,589.24,588.27,4.379]
[1744545752026,0.3394145,589.25,588.27,4.379]
[1744545752222,0.29589805,589.24,588.27,4.379]
[1744545753224,0.33942603,589.23,588.27,4.379]
[1744545753423,0.29589805,589.22,588.27,4.379]
[1744545753629,0.33943755,589.21,588.27,4.379]
[1744545753930,0.29589805,589.2,588.27,4.379]
[1744545754129,0.33944907,589.19,588.27,4.379]
[1744545754429,0.29589805,589.18,588.27,4.379]
[1744545754629,0.63535288,589.18,588.27,4.379]
[1744545754829,0.29589805,589.17,588.27,4.379]
[1744545755827,0.29571217,589.16,588.27,4.379]
[1744545756029,0.29589805,589.15,588.27,4.379]
[1744545758533,0.33946635,589.16,588.27,4.379]
[1744545758725,0.2958111,589.15,588.27,4.379]
[1744545759833,0.29571971,589.14,588.27,4.379]
[1744545760034,0.2958111,589.13,588.27,4.379]
[1744545760630,0.2958111,589.12,588.27,4.379]
[1744545760934,0.2958111,589.13,588.27,4.379]
[1744545761129,0.2958111,589.12,588.27,4.379]
[1744545761328,0.2958111,589.13,588.27,4.379]
[1744545761630,0.2958111,589.12,588.27,4.379]
[1744545761834,0.2958111,589.15,588.27,4.379]
[1744545762035,0.29572223,589.12,588.27,4.379]
[1744545762332,0.2958111,589.11,588.27,4.379]
[1744545764735,0.2958111,589.15,588.27,4.379]
[1744545764937,0.29572474,589.1,588.27,4.379]
[1744545765137,0.2958111,589.09,588.27,4.379]
[1744545767734,0.2958111,589.15,588.27,4.379]
[1744545768842,0.29571971,589.14,588.27,4.379]
[1744545769236,0.2958111,589.13,588.27,4.379]
[1744545770044,0.3394894,589.12,588.27,4.379]
[1744545770235,0.2958111,589.11,588.27,4.379]
[1744545770439,0.33950093,589.1,588.27,4.379]
[1744545770638,0.2958111,589.09,588.27,4.379]
[1744545770841,0.33951246,589.08,588.27,4.379]
[1744545771038,0.2958111,589.07,588.27,4.379]
[1744545771743,0.33952398,589.06,588.27,4.379]
[1744545771944,0.2958111,589.05,588.27,4.379]
[1744545774844,0.29575741,589.04,588.27,4.379]
[1744545775044,0.29598356,589.03,588.27,4.379]
[1744545776542,0.33952398,589.06,588.27,4.379]
[1744545776749,0.2959816,589.05,588.27,4.379]
[1744545776947,0.33953551,589.04,588.27,4.379]
[1744545777146,0.2959816,589.03,588.27,4.379]
[1744545777545,0.63552287,589.03,588.27,4.379]
[1744545777741,0.2959816,589.02,588.27,4.379]
[1744545778047,0.59174907,589.02,588.27,4.379]
[1744545778349,0.2959816,589.01,588.27,4.379]
[1744545779746,0.2959816,589.02,588.27,4.379]
[1744545780043,0.63550845,589.01,588.27,4.379]
[1744545780248,0.29595565,589.0,588.27,4.379]
[1744545780849,0.29577626,588.99,588.27,4.379]
[1744545781050,0.29595565,588.98,588.27,4.379]
[1744545782750,0.33957586,588.97,588.27,4.379]
[1744545783050,0.29595565,588.96,588.27,4.379]
[1744545783247,0.63553728,588.96,588.27,4.379]
[1744545783448,0.29595565,588.95,588.27,4.379]
[1744545784252,0.33958163,588.96,588.27,4.379]
[1744545784550,0.29600366,588.95,588.27,4.379]
[1744545786046,0.29603236,588.94,588.27,4.379]
[1744545786347,0.29603236,588.93,588.27,4.379]
[1744545786546,0.29603236,588.95,588.27,4.379]
[1744545786850,0.59181491,588.95,588.27,4.379]
[1744545787051,0.29603236,588.94,588.27,4.379]
[1744545788850,0.29603236,588.95,588.27,4.379]
[1744545789855,0.59181491,588.95,588.27,4.379]
[1744545790048,0.29603236,588.94,588.27,4.379]
[1744545791655,0.29603236,588.95,588.27,4.379]
[1744545791853,0.29603236,588.94,588.27,4.379]
[1744545792555,0.29578381,588.95,588.27,4.379]
[1744545792759,0.29613011,588.94,588.27,4.379]
[1744545794161,0.29578381,588.95,588.27,4.379]
[1744545794360,0.29618466,588.94,588.27,4.379]
[1744545794759,0.29618466,588.95,588.27,4.379]
[1744545795060,0.29618466,588.94,588.27,4.379]
[1744545797463,0.33959893,588.93,588.27,4.379]
[1744545797857,0.29618466,588.92,588.27,4.379]
[1744545798059,0.33961046,588.91,588.27,4.379]
[1744545798266,0.29618466,588.9,588.27,4.379]
[1744545799066,0.33961046,588.91,588.27,4.379]
[1744545799366,0.2962719,588.9,588.27,4.379]
[1744545801166,0.339622,588.89,588.27,4.379]
[1744545801467,0.2962719,588.88,588.27,4.379]
[1744545801864,0.29582152,588.87,588.27,4.379]
[1744545802068,0.2962719,588.86,588.27,4.379]
[1744545803868,0.2962719,588.85,588.27,4.379]
[1744545804069,0.2962719,588.88,588.27,4.379]
[1744545804871,0.29582152,588.87,588.27,4.379]
[1744545805172,0.2962719,588.86,588.27,4.379]
[1744545805371,0.6359112,588.86,588.27,4.379]
[1744545805570,0.2962719,588.85,588.27,4.379]
[1744545805769,0.33965083,588.84,588.27,4.379]
[1744545805970,0.2962719,588.83,588.27,4.379]
[1744545806166,0.33966237,588.82,588.27,4.379]
[1744545806468,0.2962719,588.81,588.27,4.379]
[1744545807171,0.33966237,588.82,588.27,4.379]
[1744545807365,0.29644094,588.81,588.27,4.379]
[1744545807871,0.29584793,588.8,588.27,4.379]
[1744545808066,0.29644094,588.79,588.27,4.379]
[1744545808371,0.63612062,588.79,588.27,4.379]
[1744545808569,0.29644094,588.78,588.27,4.379]
[1744545808871,0.29631609,588.77,588.27,4.379]
[1744545809471,0.29631609,588.76,588.27,4.379]
[1744545809672,0.29631609,588.77,588.27,4.379]
[1744545809869,0.33970276,588.75,588.27,4.379]
[1744545810073,0.29631609,588.74,588.27,4.379]
[1744545810274,0.3397143,588.73,588.27,4.379]
[1744545810474,0.29627779,588.72,588.27,4.379]
[1744545810774,0.33972584,588.71,588.27,4.379]
[1744545811074,0.29627779,588.7,588.27,4.379]
[1744545811573,0.33973738,588.69,588.27,4.379]
[1744545811874,0.29627779,588.68,587.42,0.29588692]
[1744545812075,0.29629299,588.67,587.42,0.63635881]
[1744545812268,0.33975469,588.66,587.42,0.63635881]
[1744545812473,0.29629299,588.65,587.42,0.63635881]
[1744545813577,0.33975469,588.66,587.42,0.63635881]
[1744545813778,0.29625371,588.65,587.42,0.63635881]
[1744545814378,0.29625371,588.65,587.42,1.54135881]
[1744545814576,0.33976624,588.64,587.42,2.12847189]
[1744545814778,0.29625371,588.63,587.42,2.12847189]
[1744545815077,0.29625371,588.62,587.42,2.80347189]
[1744545815279,0.33976624,588.64,587.42,3.35547189]
[1744545815480,0.29613288,588.63,587.42,3.99147189]
[1744545815673,0.29613288,588.62,587.42,4.56447189]
[1744545815878,0.29613288,588.61,587.42,4.56447189]
[1744545816080,0.29613288,588.6,587.42,4.56447189]
[1744545816279,0.29613288,588.59,587.42,4.56447189]
[1744545816580,0.29613288,588.58,587.42,4.56447189]
[1744545816780,0.29613288,588.57,587.42,4.56447189]
[1744545816976,0.29613288,588.56,587.42,4.56447189]
[1744545817180,0.63595107,588.55,587.42,4.56447189]
[1744545817481,0.63595685,588.54,587.42,4.56447189]
[1744545817675,0.29613288,588.53,587.42,4.56447189]
[1744545818580,0.29605809,588.52,587.42,4.56447189]
[1744545818784,0.29613288,588.51,587.42,4.56447189]
[1744545820179,0.29613217,588.5,587.42,4.56447189]
[1744545820385,0.29613217,588.51,587.42,4.56447189]
[1744545820685,0.29613217,588.5,587.42,4.56447189]
[1744545820879,0.29613217,588.51,587.42,4.56447189]
[1744545821083,0.29613217,588.5,587.42,4.56447189]
[1744545821280,0.29613217,588.51,587.42,4.56447189]
[1744545821481,0.29613217,588.5,587.42,4.56447189]
[1744545821683,0.33982397,588.54,587.42,4.56447189]
[1744545821884,0.29613541,588.53,587.42,4.56447189]
[1744545822085,0.29606061,588.49,587.42,4.56447189]
[1744545822385,0.29613541,588.48,587.42,4.56447189]
[1744545823487,0.29606061,588.49,587.42,4.56447189]
[1744545823686,0.2961126,588.48,587.42,4.56447189]
[1744545824483,0.33986439,588.47,587.42,4.56447189]
[1744545824787,0.2961126,588.46,587.42,4.56447189]
[1744545824988,0.63598276,588.46,587.42,4.56447189]
[1744545825288,0.2961126,588.45,587.42,4.56447189]
[1744545826286,0.33987016,588.46,587.42,4.56447189]
[1744545826587,0.29611622,588.45,587.42,4.56447189]
[1744545830187,0.2961376,588.44,587.42,4.56447189]
[1744545830388,0.2961376,588.45,587.42,4.56447189]
[1744545830589,0.2961376,588.44,587.42,4.56447189]
[1744545830891,0.2961376,588.43,587.42,4.56447189]
[1744545831084,0.2961376,588.45,587.42,4.56447189]
[1744545831788,0.2961282,588.44,587.42,4.56447189]
[1744545831989,0.33988749,588.43,587.42,4.56447189]
[1744545832191,0.2961282,588.42,587.42,4.56447189]
[1744545832593,0.33989904,588.41,587.42,4.56447189]
[1744545832795,0.2961282,588.4,587.42,4.56447189]
[1744545833293,0.3399106,588.39,587.42,4.56447189]
[1744545833795,0.29612728,588.38,587.42,4.56447189]
[1744545836304,0.3399106,588.39,587.42,4.56447189]
[1744545837198,0.29617091,588.38,587.42,4.56447189]
[1744545840000,0.3399106,588.39,587.42,4.56447189]
[1744545840306,0.29613604,588.38,587.42,4.56447189]
[1744545844411,0.3399106,588.39,587.42,4.56447189]
[1744545844611,0.29603555,588.37,587.42,4.56447189]
[1744545844808,0.29603555,588.38,587.42,4.56447189]
[1744545845006,0.29603555,588.36,587.42,4.56447189]
[1744545845205,0.29603555,588.37,587.42,4.56447189]
[1744545845409,0.29603555,588.35,587.42,4.56447189]
[1744545845713,0.29603555,588.34,587.42,4.56447189]
[1744545845910,0.29603555,588.38,587.42,4.56447189]
[1744545846808,0.3399106,588.39,587.42,4.56447189]
[1744545847012,0.2960187,588.38,587.42,4.56447189]
[1744545848614,0.3399106,588.39,587.42,4.56447189]
[1744545848814,0.29596477,588.38,587.42,4.56447189]
[1744545851815,0.3399106,588.39,587.42,4.56447189]
[1744545852017,0.29607162,588.38,587.42,4.56447189]
[1744545856826,0.3399106,588.39,587.42,4.56447189]
[1744545857027,0.29599606,588.38,587.42,4.56447189]
[1744545860233,0.3399106,588.39,587.42,4.56447189]
[1744545860534,0.29594067,588.38,587.42,4.56447189]
[1744545868639,0.3399106,588.39,587.42,4.56447189]
[1744545868640,0.29584621,588.37,587.42,4.56447189]
[1744545868838,0.29584621,588.38,587.42,4.56447189]
[1744545869139,0.29584621,588.37,587.42,4.56447189]
[1744545869340,0.29584621,588.38,587.42,4.56447189]
[1744545869537,0.29584621,588.37,587.42,4.56447189]
[1744545869737,0.29584621,588.38,587.42,4.56447189]
[1744545869939,0.29584621,588.37,587.42,4.56447189]
[1744545870239,0.29584621,588.36,587.42,4.56447189]
[1744545870538,0.29584621,588.38,587.42,4.56447189]
[1744545870738,0.29584621,588.37,587.42,4.56447189]
[1744545870951,0.29584621,588.38,587.42,4.56447189]
[1744545871141,0.29584621,588.37,587.42,4.56447189]
[1744545871439,0.29584621,588.36,587.42,4.56447189]
[1744545871743,0.3399106,588.39,587.42,4.56447189]
[1744545871940,0.29582293,588.38,587.42,4.56447189]
[1744545873344,0.3399106,588.39,587.42,4.56447189]
[1744545873643,0.29580827,588.38,587.42,4.56447189]
[1744545875445,0.3399106,588.39,587.42,4.56447189]
[1744545875743,0.29579111,588.38,587.42,4.56447189]
[1744545876340,0.3399106,588.39,587.42,4.56447189]
[1744545882656,0.29581992,588.38,587.42,4.56447189]
[1744545883353,0.3399106,588.39,587.42,4.56447189]
[1744545883558,0.29582119,588.38,587.42,4.56447189]
[1744545883960,0.29582119,588.38,587.42,4.224]
[1744545884356,0.29582119,588.49,587.42,4.224]
[1744545884860,0.29582119,588.48,587.42,4.224]
[1744545885060,0.29582119,589.35,587.42,4.224]
[1744545885360,1.28536923,588.92,587.42,4.224]
[1744545885562,0.29582119,588.91,587.42,4.224]
[1744545885861,0.59182891,588.91,587.42,4.224]
[1744545886060,0.29582119,588.9,587.42,4.224]
[1744545886460,0.29582119,588.89,587.42,4.224]
[1744545886757,0.29582119,588.88,587.42,4.224]
[1744545886964,0.29582119,588.87,587.42,4.224]
[1744545887158,0.29582119,588.9,587.42,4.224]
[1744545887458,1.28536923,588.84,587.42,4.224]
[1744545887664,0.29582119,588.83,587.42,4.224]
[1744545888762,0.29582119,588.82,587.42,4.224]
[1744545888959,0.59183899,588.82,587.42,4.224]
[1744545889164,0.29582119,588.81,587.42,4.224]
[1744545889364,0.29582119,588.8,587.42,4.224]
[1744545889660,0.29582119,588.79,587.42,4.224]
[1744545890063,0.29582119,588.78,587.42,4.224]
[1744545890363,0.29582119,588.77,587.42,4.224]
[1744545890564,0.29582119,588.76,587.42,4.224]
[1744545890766,0.29582119,588.75,587.42,4.224]
[1744545891068,0.29582119,588.74,587.42,4.224]
[1744545891362,0.29582119,588.73,587.42,4.224]
[1744545891560,1.28536923,588.77,587.42,4.224]
[1744545891561,0.29582119,588.72,587.42,4.224]
[1744545891760,0.29582119,588.71,587.42,4.224]
[1744545891965,0.29582119,588.7,587.42,4.224]
[1744545892166,0.29582119,588.69,587.42,4.224]
[1744545892366,0.29582119,588.68,587.42,4.224]
[1744545892562,0.29582119,588.67,587.42,4.224]
[1744545892766,0.29582119,588.66,587.42,4.224]
[1744545893067,0.29582119,588.65,587.42,4.224]
[1744545893266,1.28536923,588.54,587.42,4.224]
[1744545893460,0.29582119,588.53,587.42,4.224]
[1744545894868,0.5918692,588.53,587.42,4.224]
[1744545895066,0.29582119,588.52,587.42,4.224]
[1744545896165,0.29600137,588.51,587.42,4.224]
[1744545896362,0.29600137,588.52,587.42,4.224]
[1744545896562,0.29600137,588.51,587.42,4.224]
[1744545896766,0.29600137,588.52,587.42,4.224]
[1744545896969,0.29600137,588.51,587.42,4.224]
[1744545897168,0.29600137,588.64,587.42,4.224]
[1744545897370,0.29600137,588.63,587.42,4.224]
[1744545897668,1.28536923,588.65,587.42,4.224]
[1744545897864,0.29603164,588.62,587.42,4.224]
[1744545898069,0.29606517,588.61,587.42,4.224]
[1744545899272,0.29603164,588.62,587.42,4.224]
[1744545899475,0.29610515,588.61,587.42,4.224]
[1744545899875,0.29603542,588.6,587.42,4.224]
[1744545900174,0.29610515,588.59,587.42,4.224]
[1744545900674,0.29603542,588.6,587.42,4.224]
[1744545900870,0.29608452,588.59,587.42,4.224]
[1744545903679,0.29608452,588.58,587.42,4.224]
[1744545903978,0.29608452,588.57,587.42,4.224]
[1744545904174,0.29608452,588.56,587.42,4.224]
[1744545904374,0.29608452,588.55,587.42,4.224]
[1744545904577,0.29608452,588.54,587.42,4.224]
[1744545904873,0.29608452,588.53,587.42,4.224]
[1744545905078,0.29608452,588.52,587.42,4.224]
[1744545905279,0.29608452,588.59,587.42,4.224]
[1744545905475,0.29608452,588.58,587.42,4.224]
[1744545905675,0.29608452,588.57,587.42,4.224]
[1744545905877,1.28536923,588.51,587.42,4.224]
[1744545906079,0.29608452,588.5,587.42,4.224]
[1744545906879,0.2960669,588.49,587.42,4.224]
[1744545907076,0.29608452,588.48,587.42,4.224]
[1744545909183,0.29608452,588.47,587.42,4.224]
[1744545909483,0.29608452,588.46,587.42,4.224]
[1744545909682,0.29608452,588.51,587.42,4.224]
[1744545909884,0.33984706,588.5,587.42,4.224]
[1744545910083,0.29607446,588.45,587.42,4.224]
[1744545910279,0.29606531,588.44,587.42,4.224]
[1744545911480,0.29607446,588.45,587.42,4.224]
[1744545911679,0.29612665,588.43,587.42,4.224]
[1744545911878,0.29612665,588.42,587.42,4.224]
[1744545912079,0.29612665,588.41,587.42,4.224]
[1744545912377,0.29612665,588.4,587.42,4.224]
[1744545912578,0.29612665,588.39,587.42,4.224]
[1744545912884,0.29612665,588.38,587.42,4.224]
[1744545913084,0.29612665,588.48,587.42,4.224]
[1744545913280,0.29612665,588.47,587.42,4.224]
[1744545913479,0.29612665,588.46,587.42,4.224]
[1744545913680,0.29612665,588.48,587.42,4.224]
[1744545913880,0.29612665,588.47,587.42,4.224]
[1744545914079,0.29612665,588.48,587.42,4.224]
[1744545914379,0.29612665,588.47,587.42,4.224]
[1744545914584,0.29612665,588.48,587.42,4.224]
[1744545914980,0.29612665,588.49,587.42,4.224]
[1744545915181,0.29612665,588.48,587.42,4.224]
[1744545915379,0.29612665,588.49,587.42,4.224]
[1744545915584,0.29612665,588.48,587.42,4.224]
[1744545915880,0.29612665,588.47,587.42,4.224]
[1744545916084,0.29612665,588.48,587.42,4.224]
[1744545916286,0.29605557,588.49,587.42,4.224]
[1744545916485,0.29631619,588.48,587.42,4.224]
[1744545917883,0.29639081,588.47,587.42,4.224]
[1744545918084,0.29639081,588.48,587.42,4.224]
[1744545918285,0.29639081,588.47,587.42,4.224]
[1744545918480,0.29639081,588.48,587.42,4.224]
[1744545918883,0.2960669,588.47,587.42,4.224]
[1744545919087,0.29639081,588.46,587.42,4.224]
[1744545920784,0.29639081,588.48,587.42,4.224]
[1744545921491,1.28536923,588.45,587.42,4.224]
[1744545921686,0.29639081,588.44,587.42,4.224]
[1744545922591,1.58144117,588.45,587.42,4.224]
[1744545922792,0.29637265,588.44,587.42,4.224]
[1744545924193,0.29632023,588.43,587.42,4.224]
[1744545924394,0.29632023,588.44,587.42,4.224]
[1744545925192,0.29632023,588.45,587.42,4.224]
[1744545925402,0.29632023,588.44,587.42,4.224]
[1744545925603,0.29632023,588.45,587.42,4.224]
[1744545927002,0.29632023,588.44,587.42,4.224]
[1744545927205,0.29632023,588.48,587.42,4.224]
[1744545927505,0.33986439,588.47,587.42,4.224]
[1744545927707,0.29632023,588.46,587.42,4.224]
[1744545928005,0.33987594,588.45,587.42,4.224]
[1744545928305,0.29632023,588.44,587.42,4.224]
[1744545928605,0.63620195,588.44,587.42,4.224]
[1744545928805,0.29632023,588.43,587.42,4.224]
[1744545929005,0.29617031,588.42,587.42,4.224]
[1744545929204,0.29617031,588.43,587.42,4.224]
[1744545930808,0.29617031,588.43,587.42,3.549]
[1744545931210,0.29617031,588.43,587.42,2.093]
[1744545932107,0.33988172,588.44,587.42,2.093]
[1744545932309,0.29620031,588.43,587.42,2.093]
[1744545932607,0.29620031,588.42,587.42,2.093]
[1744545932908,0.29620031,588.41,587.42,1.188]
[1744545933102,0.29620031,588.43,587.42,1.188]
[1744545933301,0.29620031,588.42,587.42,0.552]
[1744545933506,0.29620031,588.41,587.42,0.552]
[1744545933807,0.29620031,588.43,587.42,0.552]
[1744545934008,0.29620031,588.42,587.42,0.552]
[1744545934209,0.29620031,588.41,587.42,0.552]
[1744545934405,0.29620031,588.4,587.42,0.552]
[1744545934605,0.29620031,588.43,587.24,0.29607698]
[1744545934805,0.29620031,588.42,587.25,0.31273854]
[1744545935009,0.29620031,588.41,587.25,0.31273854]
[1744545935210,0.29620031,588.43,587.25,0.31273854]
[1744545935412,0.29620031,588.4,587.25,0.31273854]
[1744545935610,0.29620031,588.39,587.25,0.31273854]
[1744545935811,0.29620031,588.43,587.25,0.31273854]
[1744545936015,0.29620031,588.43,587.14,1.504]
[1744545936016,1.5814777,588.4,587.23,0.29610847]
[1744545936319,0.29620031,588.39,587.24,0.31273854]
[1744545938614,1.5814777,588.4,587.23,0.29610847]
[1744545938815,0.29655103,588.39,587.24,0.31273802]
[1744545939015,0.29655103,588.39,587.15,0.31273802]
[1744545939216,0.29655103,588.39,587.16,0.34062265]
[1744545939417,0.29655103,588.39,587.17,0.31273802]
[1744545939612,0.29655103,588.39,587.18,0.34061105]
[1744545939815,0.29655103,588.39,587.19,0.31273802]
[1744545940014,0.29655103,588.39,587.2,0.34059945]
[1744545940213,1.58149156,588.4,587.2,0.34059945]
[1744545940415,0.29645624,588.38,587.21,0.31273813]
[1744545940714,0.29645624,588.37,587.21,0.31273813]
[1744545940915,0.29645624,588.36,587.21,0.31273813]
[1744545941116,0.29645624,588.39,587.21,0.31273813]
[1744545941318,0.29645624,588.35,587.21,0.31273813]
[1744545941518,0.29645624,588.34,587.21,0.31273813]
[1744545941718,0.29645624,588.39,587.21,0.31273813]
[1744545941914,0.29645624,588.33,587.21,0.31273813]
[1744545942121,0.29645624,588.32,587.21,0.31273813]
[1744545942325,0.29645624,588.43,587.2,0.636718]
[1744545942920,0.29612359,588.42,587.2,0.636718]
[1744545943121,0.63635528,588.41,587.2,0.636718]
[1744545943320,0.63636106,588.4,587.2,0.636718]
[1744545943519,0.29623493,588.39,587.2,0.636718]
[1744545944722,0.29623493,588.39,587.2,0.34059945]
[1744545946021,0.29613619,588.38,587.2,0.34059945]
[1744545946222,0.29623493,588.37,587.2,0.34059945]
[1744545947924,0.29623493,588.39,587.2,0.34059945]
[1744545948930,0.29613619,588.38,587.2,0.34059945]
[1744545949226,0.29623493,588.37,587.2,0.34059945]
[1744545950927,0.29623493,588.36,587.2,0.34059945]
[1744545951127,0.29623493,588.39,587.2,0.34059945]
[1744545951428,0.29623493,588.38,587.2,0.34059945]
[1744545951928,0.59236608,588.37,587.2,0.34059945]
[1744545952128,0.29623493,588.36,587.2,0.34059945]